Workbook

Sheet Indice Electrónico
A1: ÍNDICE ELECTRÓNICO DEL EXPEDIENTE JUDICIAL
A2: Ciudad | B2: Bogotá | H2: EXPEDIENTE FÍSICO
A3: Despacho Judicial | B3: Superintendencia Financiera de Colombia - Delegatura para Funciones Jurisdiccionales | H3: El expediente judicial posee documentos físicos: | J3: SI NO
A4: Serie o Subserie Documental
A5: No. Radicación del Proceso | B5: 2021244890 | H5: No. de carpetas (cuadernos), legajos o tomos:
A6: No. Expediente del Proceso | B6: 2021-4784
A7: Partes Procesales (Parte A) (demandado, procesado, accionado) | B7: EUFEMIA MARULANDA DE CANIZALES | H7: No. de carpetas (cuadernos), legajos o tomos digitalizados:
A8: Partes Procesales (Parte B) (demandante, denunciante, accionante) | B8: EUFEMIA MARULANDA DE CANIZALES
A9: Cuaderno
A11: Nombre Documento | B11: Fecha Creación Documento | C11: Fecha Incorporación Expediente | D11: Orden Documento | E11: Número Páginas | F11: Página Inicio | G11: Página Fin | H11: Formato | I11: Tamaño | J11: Origen | K11: Observaciones
A12: Demanda y Anexos | B12: 2021-11-09 | C12: 2021-11-09 | D12: 1 | E12: 133 | F12: 1 | G12: =(E12+F12)-1 -> 133 | H12: PDF | I12: 375 MB | J12: Electronico
A13: Anexo Correo | B13: 2021-11-09 | C13: 2021-11-09 | D13: 2 | E13: 1 | F13: =+G12+1 -> 134 | G13: =(E13+F13)-1 -> 134 | H13: PDF | I13: 453 MB | J13: Electronico
A14: Anexo Radicación | B14: 2021-11-09 | C14: 2021-11-09 | D14: 3 | E14: 1 | F14: =+G13+1 -> 135 | G14: 135 | H14: PDF | I14: 40,9 KB | J14: Electronico
A15: DEMANDA PARA CALIFICAR | B15: 2021-11-10 | C15: 2021-11-10 | D15: 4 | E15: 2 | F15: 136 | G15: 137 | H15: PDF | I15: 126 KB | J15: Electronico
A16: AUTO ADMISORIO VERBAL | B16: 2021-11-12 | C16: 2021-11-12 | D16: 5 | E16: 3 | F16: 138 | G16: 140 | H16: PDF | I16: 165 KB | J16: Electronico
A17: REMISION DE INFORMACIÓN | B17: 2021-11-15 | C17: 2021-11-15 | D17: 6 | E17: 2 | F17: 141 | G17: 142 | H17: PDF | I17: 170 KB | J17: Electronico
A18: Prueba de entrega | B18: 2021-11-15 | C18: 2021-11-15 | D18: 7 | E18: 9 | F18: 143 | G18: 151 | H18: PDF | I18: 756 KB | J18: Electronico
A19: Anexo Radicación | B19: 2021-11-15 | C19: 2021-11-15 | D19: 8 | E19: 1 | F19: 152 | G19: 152 | H19: PDF | I19: 40,8 KB | J19: Electronico
A20: NOTIFICACION PERSONAL VERBAL | B20: 2021-11-16 | C20: 2021-11-16 | D20: 9 | E20: 2 | F20: 153 | G20: 154 | H20: PDF | I20: 138 KB | J20: Electronico
A21: NOTIFICACION PERSONAL VERBAL | B21: 2021-11-16 | C21: 2021-11-16 | D21: 10 | E21: 2 | F21: 155 | G21: 156 | H21: PDF | I21: 138 KB | J21: Electronico
A22: Prueba de entrega | B22: 2021-11-16 | C22: 2021-11-16 | D22: 11 | E22: 1 | F22: 157 | G22: 157 | H22: PDF | I22: 1,25 KB | J22: Electronico
A23: Prueba de entrega | B23: 2021-11-16 | C23: 2021-11-16 | D23: 12 | E23: 1 | F23: 158 | G23: 158 | H23: PDF | I23: 1,24 KB | J23: Electronico
A24: 013 PODER GUSTAVO HERRERA- SUPERINTENDENCIA.docx (23) | B24: 2021-11-19 | C24: 2021-11-19 | D24: 13 | E24: 1 | F24: 159 | G24: 159 | H24: PDF | I24: 153 KB | J24: Electronico
A25: 014 CERTIFICADO SFC SEGUROS DE VIDA JULIO | B25: 2021-11-19 | C25: 2021-11-19 | D25: 14 | E25: 3 | F25: 160 | G25: 162 | H25: PDF | I25: 30,8 KB | J25: Electronico
A26: Anexo Correo | B26: 2021-11-19 | C26: 2021-11-19 | D26: 15 | E26: 1 | F26: 163 | G26: 163 | H26: PDF | I26: 609 kb | J26: Electronico
A27: Anexo Radicación | B27: 2021-11-19 | C27: 2021-11-19 | D27: 16 | E27: 1 | F27: 164 | G27: 164 | H27: PDF | I27: 40,4KB | J27: Electronico
A28: 017 TrasladoBBVA | B28: 2021-11-19 | C28: 2021-11-19 | D28: 17 | E28: 5 | F28: 165 | G28: 169 | H28: PDF | I28: 360 KB | J28: Electronico
A29: Anexo Correo | B29: 2021-11-19 | C29: 2021-11-19 | D29: 18 | E29: 1 | F29: 170 | G29: 170 | H29: PDF | I29: 574 KB | J29: Electronico
A30: Anexo Radicación | B30: 2021-11-19 | C30: 2021-11-19 | D30: 19 | E30: 1 | F30: 171 | G30: 171 | H30: PDF | I30: 40,9 KB | J30: Electronico
A31: 020 Certificado Camara de Comercio 04 Noviembre 2021 (2) (1) | B31: 2021-11-29 | C31: 2021-11-29 | D31: 20 | E31: 70 | F31: 172 | G31: 241 | H31: PDF | I31: 15,8 MB | J31: Electronico
A32: Anexo Correo | B32: 2021-11-29 | C32: 2021-11-29 | D32: 21 | E32: 1 | F32: 242 | G32: 242 | H32: PDF | I32: 660 KB | J32: Electronico
A33: Anexo Radicación | B33: 2021-11-29 | C33: 2021-11-29 | D33: 22 | E33: 1 | F33: 243 | G33: 243 | H33: PDF | I33: 40,6 KB | J33: Electronico
A34: 023 Cont. rad.2021244890 - | B34: 2021-12-01 | C34: 2021-12-01 | D34: 23 | E34: 9 | F34: 244 | G34: 252 | H34: PDF | I34: 2,58 MB | J34: Electronico
A35: 024 PRUEBAS RAD.2021244890 | B35: 2021-12-01 | C35: 2021-12-01 | D35: 24 | E35: 3 | F35: 253 | G35: 255 | H35: PDF | I35: 9,86 KB | J35: Electronico
A36: Anexo Correo | B36: 2021-12-01 | C36: 2021-12-01 | D36: 25 | E36: 1 | F36: 256 | G36: 256 | H36: PDF | I36: 448 KB | J36: Electronico
A37: Anexo Radicación | B37: 2021-12-01 | C37: 2021-12-01 | D37: 26 | E37: 1 | F37: 257 | G37: 257 | H37: PDF | I37: 40,9 KB | J37: Electronico
A38: 2021-4784. CONTESTACIÓN A LA DEMANDA | B38: 2021-12-16 | C38: 2021-12-16 | D38: 27 | E38: 202 | F38: 258 | G38: 459 | H38: PDF | I38: 8,28 MB | J38: Electronico
A39: Anexo Correo | B39: 2021-12-16 | C39: 2021-12-16 | D39: 28 | E39: 1 | F39: 460 | G39: 460 | H39: PDF | I39: 773 KB | J39: Electronico
A40: Anexo Radicación | B40: 2021-12-16 | C40: 2021-12-16 | D40: 29 | E40: 1 | F40: 461 | G40: 461 | H40: PDF | I40: 40,2 KB | J40: Electronico
A41: TRASLADO DE EXCEPCIONES PR VERBAL | B41: 2021-12-17 | C41: 2021-12-17 | D41: 30 | E41: 1 | F41: 462 | G41: 462 | H41: PDF | I41: 154 KB | J41: Electronico
A42: Historia Clinica | B42: 2021-12-20 | C42: 2021-12-20 | D42: 31 | E42: 211 | F42: 463 | G42: 673 | H42: PDF | I42: 1,32 MB | J42: Electronico
A43: Anexo Correo | B43: 2021-12-20 | C43: 2021-12-20 | D43: 32 | E43: 1 | F43: 674 | G43: 674 | H43: PDF | I43: 643 KB | J43: Electronico
A44: Anexo Radicación | B44: 2021-12-20 | C44: 2021-12-20 | D44: 33 | E44: 1 | F44: 675 | G44: 675 | H44: PDF | I44: 41,0 KB | J44: Electronico
A45: Manifestacion | B45: 2021-12-21 | C45: 2021-12-21 | D45: 34 | E45: 28 | F45: 676 | G45: 703 | H45: PDF | I45: 1,25 MB | J45: Electronico
A46: Anexo Correo | B46: 2021-12-21 | C46: 2021-12-21 | D46: 35 | E46: 1 | F46: 704 | G46: 704 | H46: PDF | I46: 584 KB | J46: Electronico
A47: Anexo Radicación | B47: 2021-12-21 | C47: 2021-12-21 | D47: 36 | E47: 1 | F47: 705 | G47: 705 | H47: PDF | I47: 40,9 KB | J47: Electronico
A48: AL DESPACHO PARA FIJAR FECHA AUDIENCIA | B48: 2022-12-28 | C48: 2022-12-28 | D48: 37 | E48: 2 | F48: 706 | G48: 707 | H48: PDF | I48: 142 KB | J48: Electronico
A49: SENTENCIA ESCRITA NIEGA | B49: 2022-02-22 | C49: 2022-02-22 | D49: 38 | E49: 6 | F49: 708 | G49: 713 | H49: PDF | I49: 190 KB | J49: Electronico
A50: FINALIZACION DE EXPEDIENTES | B50: 2022-02-22 | C50: 2022-02-22 | D50: 39 | E50: 1 | F50: 714 | G50: 714 | H50: PDF | I50: 124 KB | J50: Electronico
A51: REACTIVACIÓN DE EXPEDIENTES | B51: 2022-02-24 | C51: 2022-02-24 | D51: 40 | E51: 1 | F51: 715 | G51: 715 | H51: PDF | I51: 121 KB | J51: Electronico
A52: RECURSO | B52: 2022-02-25 | C52: 2022-02-25 | D52: 41 | E52: 15 | F52: 716 | G52: 730 | H52: PDF | I52: 698 KB | J52: Electronico
A53: Anexo Correo | B53: 2022-02-25 | C53: 2022-02-25 | D53: 42 | E53: 1 | F53: 731 | G53: 731 | H53: PDF | I53: 580 KB | J53: Electronico
A54: Anexo Radicación | B54: 2022-02-25 | C54: 2022-02-25 | D54: 43 | E54: 1 | F54: 732 | G54: 732 | H54: PDF | I54: 40,6 KB | J54: Electronico
A55: INFORME SECRETARIAL | B55: 2022-03-04 | C55: 2022-03-04 | D55: 44 | E55: 1 | F55: 733 | G55: 733 | H55: PDF | I55: 137 KB | J55: Electronico
A56: Petición | B56: 2022-03-05 | C56: 2022-03-05 | D56: 45 | E56: 1 | F56: 734 | G56: 734 | H56: PDF | I56: 440 KB | J56: Electronico
A57: Anexo Radicación | B57: 2022-03-05 | C57: 2022-03-05 | D57: 46 | E57: 1 | F57: 735 | G57: 735 | H57: PDF | I57: 40,5 KB | J57: Electronico
A58: AUTO QUE RESUELVE RECURSO | B58: 2022-05-04 | C58: 2022-05-04 | D58: 47 | E58: 2 | F58: 736 | G58: 737 | H58: PDF | I58: 161 KB | J58: Electronico
A59: PROCESO TRIBUNAL | B59: 2022-05-16 | C59: 2022-05-16 | D59: 48 | E59: 1 | F59: 738 | G59: 738 | H59: PDF | I59: 450 KB | J59: Electronico
A60: Anexo Radicación | B60: 2022-05-16 | C60: 2022-05-16 | D60: 49 | E60: 1 | F60: 739 | G60: 739 | H60: PDF | I60: 40,8 KB | J60: Electronico
A61: REMISION DE INFORMACION | B61: 2022-05-16 | C61: 2022-05-16 | D61: 50 | E61: 2 | F61: 740 | G61: 741 | H61: PDF | I61: 175 KB | J61: Electronico
A62: Prueba de entrega | B62: 2022-05-16 | C62: 2022-05-16 | D62: 51 | E62: 57 | F62: 742 | G62: 798 | H62: PDF | I62: 4,99 MB | J62: Electronico
A63: Anexo Radicación | B63: 2022-05-16 | C63: 2022-05-16 | D63: 52 | E63: 1 | F63: 799 | G63: 799 | H63: PDF | I63: 40,5 KB | J63: Electronico
A64: REMISION DE INFORMACIÓN | B64: 2022-06-29 | C64: 2022-06-29 | D64: 53 | E64: 2 | F64: 800 | G64: 801 | H64: PDF | I64: 152 KB | J64: Electronico
A65: REMISION DE INFORMACIÓN | B65: 2022-06-29 | C65: 2022-06-29 | D65: 54 | E65: 2 | F65: 802 | G65: 803 | H65: PDF | I65: 153 KB | J65: Electronico
A66: REMISION DE INFORMACIÓN | B66: 2022-06-29 | C66: 2022-06-29 | D66: 55 | E66: 2 | F66: 804 | G66: 805 | H66: PDF | I66: 153 KB | J66: Electronico
A67: Prueba de entrega | B67: 2022-06-29 | C67: 2022-06-29 | D67: 56 | E67: 1 | F67: 806 | G67: 806 | H67: PDF | I67: 1,25 KB | J67: Electronico
A68: Prueba de entrega | B68: 2022-06-29 | C68: 2022-06-29 | D68: 57 | E68: 1 | F68: 807 | G68: 807 | H68: PDF | I68: 1,24 KB | J68: Electronico
A69: Prueba de entrega | B69: 2022-06-29 | C69: 2022-06-29 | D69: 58 | E69: 57 | F69: 808 | G69: 864 | H69: PDF | I69: 4,95 MB | J69: Electronico
A70: Anexo Radicación | B70: 2022-06-29 | C70: 2022-06-29 | D70: 59 | E70: 1 | F70: 865 | G70: 865 | H70: PDF | I70: 41,3 KB | J70: Electronico
A71: FECHA DE CIERRE DEL EXPEDIENTE:
A72: Número de cuadernos del expediente. (diligencie al momento de archivo definitivo)

Sheet Hoja1
C1: Orden Documento | D1: Número Páginas | E1: Página Inicio | F1: Página Fin
C3: 44 | D3: 2 | E3: 132 | F3: 133 | H3: 44 | I3: 2 | J3: 132 | K3: =(J3+I3)-1 -> 133 | M3: 44 | N3: 2 | O3: 132 | P3: =(O3+N3)-1 -> 133
C4: 45 | D4: 1 | E4: 134 | F4: 134 | H4: 45 | I4: 1 | J4: 134 | K4: =(J4+I4)-1 -> 134 | M4: 45 | N4: 1 | O4: 134 | P4: =(O4+N4)-1 -> 134
C5: 46 | D5: 1 | E5: 135 | F5: 135 | H5: 46 | I5: 1 | J5: 135 | K5: 135 | M5: 46 | N5: 1 | O5: 135 | P5: 135
C6: 47 | D6: 2 | E6: 136 | F6: 137 | H6: 47 | I6: 2 | J6: 136 | K6: 137 | M6: 47 | N6: 2 | O6: 136 | P6: 137
C7: 48 | D7: 2 | E7: 138 | F7: 139 | H7: 48 | I7: 2 | J7: 138 | K7: 139 | M7: 48 | N7: 2 | O7: 138 | P7: 139
C8: 49 | D8: 5 | E8: 140 | F8: =E8+4 -> 144 | H8: 49 | I8: 5 | J8: 140 | K8: 144 | M8: 49 | N8: 5 | O8: 140 | P8: 144
C9: 50 | D9: 1 | E9: 145 | F9: 145 | H9: 50 | I9: 1 | J9: 145 | K9: 145 | M9: 50 | N9: 1 | O9: 145 | P9: 145
C10: 51 | D10: 18 | E10: 146 | F10: =E10+17 -> 163 | H10: 51 | I10: 18 | J10: 146 | K10: 163 | M10: 51 | N10: 18 | O10: 146 | P10: 163
C11: 52 | D11: 285 | E11: 164 | F11: =E11+284 -> 448 | H11: 52 | I11: 285 | J11: 164 | K11: 448 | M11: 52 | N11: 285 | O11: 164 | P11: 448
C12: 53 | D12: 2 | E12: 449 | F12: 450 | H12: 53 | I12: 2 | J12: 449 | K12: 450 | M12: 53 | N12: 2 | O12: 449 | P12: 450
C13: 54 | D13: 1 | E13: 451 | F13: 451 | H13: 54 | I13: 1 | J13: 451 | K13: =(J13+I13)-1 -> 451 | M13: 54 | N13: 1 | O13: =P12+1 -> 451 | P13: 451
C14: 55 | D14: 2 | H14: 55 | I14: 2 | J14: =(J13+I14)-1 -> 452 | K14: 453 | M14: 55 | N14: 2 | O14: =P13+1 -> 452 | P14: =(O14+N14)-2 -> 452
C15: 56 | D15: 2 | H15: 56 | I15: 2 | J15: =(J14+I15)-1 -> 453 | K15: 454 | M15: 56 | N15: 2 | O15: 453 | P15: =(O15+N15)-1 -> 454
C16: 57 | D16: 1 | H16: 57 | I16: 1 | J16: 455 | K16: 455 | M16: 57 | N16: 1 | O16: 455 | P16: =(O16+N16)-1 -> 455
C17: 58 | D17: 1 | H17: 58 | I17: 1 | J17: 456 | K17: 456 | M17: 58 | N17: 1 | O17: 456 | P17: =(O17+N17)-1 -> 456
C18: 59 | D18: 18 | H18: 59 | I18: 18 | J18: 457 | K18: 474 | M18: 59 | N18: 18 | O18: 457 | P18: =(O18+N18)-2 -> 473
C19: 60 | D19: 1 | H19: 60 | I19: 1 | J19: =K18+1 -> 475 | K19: 475 | M19: 60 | N19: 1 | O19: 474 | P19: =(O19+N19)-1 -> 474
C24: 1 | D24: 1 | E24: 1 | F24: =(D24+E24)-1 -> 1
C25: 2 | D25: 1 | E25: =+F24+1 -> 2 | F25: =(D25+E25)-1 -> 2
C26: 3 | D26: 2 | E26: =+F25+1 -> 3 | F26: 4
C27: 4 | D27: 1 | E27: 5 | F27: 5
C28: 5 | D28: 1 | E28: 6 | F28: 6
C29: 6 | D29: 1 | E29: 7 | F29: 7
C30: 7 | D30: 3 | E30: 8 | F30: 10
C31: 8 | D31: 2 | E31: 11 | F31: 12
C32: 9 | D32: 9 | E32: 13 | F32: 21
C33: 10 | D33: 1 | E33: 22 | F33: 22
C34: 11 | D34: 1 | E34: 23 | F34: 23
C35: 12 | D35: 1 | E35: 24 | F35: 24
C36: 13 | D36: 1 | E36: 25 | F36: 25
C37: 14 | D37: 2 | E37: 26 | F37: 27
C38: 15 | D38: 2 | E38: 28 | F38: 29
C39: 16 | D39: 1 | E39: 30 | F39: 30
C40: 17 | D40: 2 | E40: 31 | F40: 32
C41: 18 | D41: 2 | E41: 33 | F41: 34
C42: 19 | D42: 2 | E42: 35 | F42: 36
C43: 20 | D43: 2 | E43: 37 | F43: 38
C44: 21 | D44: 1 | E44: 39 | F44: 39
C45: 22 | D45: 2 | E45: 40 | F45: 41
C46: 23 | D46: 2 | E46: 42 | F46: 43
C47: 24 | D47: 1 | E47: 44 | F47: 44
C48: 25 | D48: 1 | E48: 45 | F48: 45
C49: 26 | D49: 2 | E49: 46 | F49: 47
C50: 27 | D50: 28 | E50: 48 | F50: 75
C51: 28 | D51: 4 | E51: 76 | F51: 79
C52: 29 | D52: 4 | E52: 80 | F52: 83
C53: 30 | D53: 20 | E53: 84 | F53: 103
C54: 31 | D54: 4 | E54: 104 | F54: 107
C55: 32 | D55: 2 | E55: 108 | F55: 109
C56: 33 | D56: 1 | E56: 110 | F56: 110
C57: 34 | D57: 1 | E57: 111 | F57: 111
C58: 35 | D58: 1 | E58: 112 | F58: 112
C59: 36 | D59: 1 | E59: 113 | F59: 113
C60: 37 | D60: 8 | E60: 114 | F60: 121
C61: 38 | D61: 1 | E61: 122 | F61: 122
C62: 39 | D62: 1 | E62: 123 | F62: 123
C63: 40 | D63: 2 | E63: 124 | F63: 125
C64: 41 | D64: 3 | E64: 126 | F64: 128
C65: 42 | D65: 2 | E65: 129 | F65: 130
C66: 43 | D66: 1 | E66: 131 | F66: 131
C67: 44 | D67: 2 | E67: 132 | F67: 133
C68: 45 | D68: 1 | E68: 134 | F68: 134
C69: 46 | D69: 1 | E69: 135 | F69: 135
C70: 47 | D70: 2 | E70: 136 | F70: 137
C71: 48 | D71: 2 | E71: 138 | F71: 139
C72: 49 | D72: 5 | E72: 140 | F72: 144
C73: 50 | D73: 1 | E73: 145 | F73: 145
C74: 51 | D74: 18 | E74: 146 | F74: 163
C75: 52 | D75: 285 | E75: 164 | F75: 448
C76: 53 | D76: 2 | E76: 449 | F76: 450
C77: 54 | D77: 1 | E77: 451 | F77: 451
C78: 55 | D78: 2 | E78: 452 | F78: 453
C79: 56 | D79: 2 | E79: 454 | F79: 455
C80: 57 | D80: 1 | E80: 456 | F80: 456
C81: 58 | D81: 1 | E81: 457 | F81: 457
C82: 59 | D82: 18 | E82: 458 | F82: 475
C83: 60 | D83: 1 | E83: 476 | F83: 476
C84: 61 | D84: 1 | E84: 477 | F84: 477
C85: 62 | D85: 1 | E85: 478 | F85: 478
C86: 63 | D86: 1 | E86: 479 | F86: 479
C87: 64 | D87: 2 | E87: 480 | F87: 481
C88: 65 | D88: 1 | E88: 482 | F88: 482
C89: 66 | D89: 3 | E89: 483 | F89: =(D89+E89)-1 -> 485
C90: 67 | D90: 5 | E90: =+F89+1 -> 486 | F90: 490
C91: 68 | D91: 2 | E91: 491 | F91: 492
C92: 69 | D92: 2 | E92: 493 | F92: 494
C93: 70 | D93: 1 | E93: 495 | F93: 495
C94: 71 | D94: 2 | E94: 496 | F94: 497
C95: 72 | D95: 2 | E95: 498 | F95: 499
C96: 73 | D96: 1 | E96: 500 | F96: 500
C97: 74 | D97: 1 | E97: 501 | F97: 501
C98: 75 | D98: 9 | E98: 502 | F98: 510
C99: 76 | D99: 1 | E99: 511 | F99: 511
C100: 77 | D100: 2 | E100: 512 | F100: 513
C101: 78 | D101: 12 | E101: 514 | F101: 525
C102: 79 | D102: 2 | E102: 526 | F102: 527
C103: 80 | D103: 1 | E103: 528 | F103: 528
C104: 81 | D104: 51 | E104: 529 | F104: 579
C105: 82 | D105: 7 | E105: 580 | F105: 586
C106: 83 | D106: 1 | E106: 587 | F106: 587
C107: 84 | D107: 1 | E107: 588 | F107: 588
C108: 85 | D108: 91 | E108: 589 | F108: 679
C109: 86 | D109: 2 | E109: 680 | F109: 681
C110: 87 | D110: 11 | E110: 682 | F110: 692
C111: 88 | D111: 1 | E111: 693 | F111: 693
C112: 89 | D112: 1 | E112: 694 | F112: 694
C113: 90 | D113: 91 | E113: 695 | F113: 785
C114: 91 | D114: 1 | E114: 786 | F114: 786
C115: 92 | D115: 1 | E115: 787 | F115: 787
C116: 93 | D116: 3 | E116: 788 | F116: 790
C117: 94 | D117: 1 | E117: 791 | F117: 791
C118: 95 | D118: 1 | E118: 792 | F118: 792
C119: 96 | D119: 2 | E119: 793 | F119: 794
C120: 97 | D120: 9 | E120: 795 | F120: 803
C121: 98 | D121: 5 | E121: 804 | F121: 808
C122: 99 | D122: 33 | E122: 809 | F122: 841
C123: 100 | D123: 14 | E123: 842 | F123: 855
C124: 101 | D124: 28 | E124: 856 | F124: 883
C125: 102 | D125: 1 | E125: 884 | F125: 884
C126: 103 | D126: 1 | E126: 885 | F126: 885
C127: 104 | D127: 3 | E127: 886 | F127: 888
C128: 105 | D128: 1 | E128: 889 | F128: 889
C129: 106 | D129: 2 | E129: 890 | F129: 891
C130: 107 | D130: 2 | E130: 892 | F130: 893
C131: 108 | D131: 1 | E131: 894 | F131: 894
C132: 109 | D132: 47 | E132: 895 | F132: 941
C133: 110 | D133: 1 | E133: 942 | F133: 942
C134: 111 | D134: 3 | E134: 943 | F134: 945
C135: 112 | D135: 2 | E135: 946 | F135: 947
C136: 113 | D136: 1 | E136: 948 | F136: 948
C137: 114 | D137: 1 | E137: 949 | F137: 949
C138: 115 | D138: 69 | E138: 950 | F138: 1018
C139: 116 | D139: 1 | E139: 1019 | F139: 1019
C140: 117 | D140: 1 | E140: 1020 | F140: 1020
C141: 118 | D141: 1 | E141: 1021 | F141: 1021
C142: 119 | D142: 1 | E142: 1022 | F142: 1022
C143: 120 | D143: 3 | E143: 1023 | F143: 1025
C144: 121 | D144: 2 | E144: 1026 | F144: 1027
C145: 122 | D145: 1 | E145: 1028 | F145: 1028
C146: 123 | D146: 44 | E146: 1029 | F146: 1072
C147: 124 | D147: 2 | E147: 1073 | F147: 1074
C148: 125 | D148: 1 | E148: 1075 | F148: 1075
C149: 126 | D149: 1 | E149: 1076 | F149: 1076
C150: 127 | D150: 1 | E150: 1077 | F150: 1077
C151: 128 | D151: 2 | E151: 1078 | F151: 1079
C152: 129 | D152: 17 | E152: 1080 | F152: 1096
C153: 130 | D153: 1 | E153: 1097 | F153: =(D153+E153)-1 -> 1097
C154: 131 | D154: 12 | E154: =+F153+1 -> 1098 | F154: 1109
C155: 132 | D155: 2 | E155: 1110 | F155: 1111
C156: 133 | D156: 1 | E156: 1112 | F156: 1112
C157: 134 | D157: 1 | E157: 1113 | F157: 1113
C158: 135 | D158: 1 | E158: 1114 | F158: 1114
C159: 136 | D159: 1 | E159: 1115 | F159: 1115
C160: 137 | D160: 2 | E160: 1116 | F160: 1117
C161: 138 | D161: 1 | E161: 1118 | F161: 1118
C162: 139 | D162: 2 | E162: 1119 | F162: 1120
C163: 140 | D163: 2 | E163: 1121 | F163: 1122
C164: 141 | D164: 1 | E164: 1123 | F164: 1123
C165: 142 | D165: 1 | E165: 1124 | F165: 1124
C166: 143 | D166: 1 | E166: 1125 | F166: 1125
C167: 144 | D167: 2 | E167: 1126 | F167: 1127
C168: 145 | D168: 2 | E168: 1128 | F168: 1129
C169: 146 | D169: 1 | E169: 1130 | F169: 1130
C170: 147 | D170: 1 | E170: 1131 | F170: 1131
C171: 148 | D171: 2 | E171: 1132 | F171: 1133
C172: 149 | D172: 2 | E172: 1134 | F172: 1135
C173: 150 | D173: 2 | E173: 1136 | F173: 1137
C174: 151 | D174: 3 | E174: 1138 | F174: 1140
C175: 152 | D175: 1 | E175: 1141 | F175: 1141
C176: 153 | D176: 2 | E176: 1142 | F176: 1143
C177: 154 | D177: 1 | E177: 1144 | F177: 1144
C178: 155 | D178: 2 | E178: 1145 | F178: 1146
C179: 156 | D179: 2 | E179: 1147 | F179: 1148
C180: 157 | D180: 1 | E180: 1149 | F180: 1149
C181: 158 | D181: 1 | E181: 1150 | F181: 1150
C182: 159 | D182: 1 | E182: 1151 | F182: 1151
C183: 160 | D183: 2 | E183: 1152 | F183: 1153
C184: 161 | D184: 1 | E184: 1154 | F184: 1154
C185: 162 | D185: 2 | E185: 1155 | F185: 1156
C186: 163 | D186: 1 | E186: 1157 | F186: 1157
C187: 164 | D187: 6 | E187: 1158 | F187: 1163
C188: 165 | D188: 1 | E188: 1164 | F188: 1164
C189: 166 | D189: 1 | E189: 1165 | F189: 1165
C190: 167 | D190: 6 | E190: 1166 | F190: 1171
C191: 168 | D191: 1 | E191: 1172 | F191: 1172
C192: 169 | D192: 1 | E192: 1173 | F192: 1173
C193: 170 | D193: 1 | E193: 1174 | F193: 1174
C194: 171 | D194: 2 | E194: 1175 | F194: 1176
C195: 172 | D195: 3 | E195: 1177 | F195: 1179
C196: 173 | D196: 3 | E196: 1180 | F196: 1182
C197: 174 | D197: 9 | E197: 1183 | F197: 1191
C198: 175 | D198: 1 | E198: 1192 | F198: 1192
C199: 176 | D199: 3 | E199: 1193 | F199: 1195
C200: 177 | D200: 3 | E200: 1196 | F200: 1198
C201: 178 | D201: 3 | E201: 1199 | F201: 1201
C202: 179 | D202: 1 | E202: 1202 | F202: 1202
C203: 180 | D203: 1 | E203: 1203 | F203: 1203
C204: 181 | D204: 1 | E204: 1204 | F204: 1204
C205: 182 | D205: 1 | E205: 1205 | F205: 1205
... 21 more rows
